fUSD/lending_fUSD_20251212
["ID","MTS","AMOUNT","RATE_DAILY","PERIOD"]
[398295269,1765500674248,-156.29397478,0.00040979,2]
[398295270,1765500674258,-412.5492,0.00040979,2]
[398295271,1765500674268,-296.58387924,0.0004098,2]
[398295272,1765500674277,-771.83794689,0.0004098,120]
[398295273,1765500674286,-582.17838979,0.00040982,13]
[398295274,1765500674295,-582.17838972,0.00040982,13]
[398295275,1765500674304,-582.17838972,0.00040982,13]
[398295276,1765500674313,-582.17838972,0.00040982,13]
[398295277,1765500674323,-582.17838972,0.00040982,13]
[398295278,1765500674332,-582.17838972,0.00040982,13]
[398295279,1765500674341,-582.17838972,0.00040982,13]
[398295280,1765500674352,-8649.50444409,0.00040985,120]
[398295281,1765500674361,-478.38904911,0.00040996,2]
[398295282,1765500674370,-196.06408556,0.00040996,2]
[398295283,1765500674384,-1057.45379104,0.00040996,2]
[398295284,1765500674393,-155.45436406,0.00040996,8]
[398295285,1765500674402,-2000.0,0.00040999,30]
[398295286,1765500674411,-2641.5,0.00040999,30]
[398295287,1765500674421,-4994.27202383,0.00041,120]
[398295288,1765500674430,-7475.47712659,0.00041,30]
[398295289,1765500674440,-2000.0,0.00041,120]
[398295290,1765500674450,-1000.0,0.00041,120]
[398295291,1765500674459,-1500.0,0.00041,120]
[398295292,1765500674468,-14386.5290935,0.00041,30]
[398295293,1765500674477,-2420.55,0.00041,30]
[398295294,1765500674487,-500.0,0.00041,120]
[398295295,1765500674496,-1500.0,0.00041,60]
[398295296,1765500674505,-480.8542997,0.00041,120]
[398295297,1765500674515,-4528.54433246,0.00041,120]
[398295298,1765500674524,-2822.07055439,0.00041,120]
[398295299,1765500674533,-658.1281877,0.00041,30]
[398295300,1765500674543,-4451.30251201,0.00041,120]
[398295301,1765500674552,-1470.25612118,0.00041,120]
[398295302,1765500674560,-2657.52381084,0.00041,120]
[398295303,1765500674571,-171.35386163,0.00041,120]
[398295304,1765500674580,-2500.0,0.00041,120]
[398295305,1765500674590,-150.0,0.00041,60]
[398295306,1765500674600,-213.8,0.00041,30]
[398295307,1765500674609,-169.0,0.00041,90]
[398295308,1765500674618,-2500.0,0.00041,120]
[398295309,1765500674627,-2500.0,0.00041,120]
[398295310,1765500674636,-1000.0,0.00041,120]
[398295311,1765500674645,-1000.0,0.00041,120]
[398295312,1765500674654,-1000.0,0.00041,120]
[398295313,1765500674663,-1000.0,0.00041,120]
[398295314,1765500674672,-1000.0,0.00041,120]
[398295315,1765500674681,-1000.0,0.00041,120]
[398295316,1765500674690,-1000.0,0.00041,120]
[398295317,1765500674700,-1000.0,0.00041,120]
[398295318,1765500674709,-1000.0,0.00041,120]
[398295319,1765500674719,-1000.0,0.00041,120]
[398295320,1765500674728,-1000.0,0.00041,120]
[398295321,1765500674737,-1000.0,0.00041,120]
[398295322,1765500674746,-1000.0,0.00041,120]
[398295323,1765500674755,-1000.0,0.00041,120]
[398295324,1765500674764,-1000.0,0.00041,120]
[398295325,1765500674774,-1000.0,0.00041,120]
[398295326,1765500674783,-1000.0,0.00041,120]
[398295327,1765500674794,-1000.0,0.00041,120]
[398295328,1765500674803,-1000.0,0.00041,120]
[398295329,1765500674812,-1000.0,0.00041,120]
[398295330,1765500674822,-1000.0,0.00041,120]
[398295331,1765500674831,-1000.0,0.00041,120]
[398295332,1765500674840,-1000.0,0.00041,120]
[398295333,1765500674850,-1000.0,0.00041,120]
[398295334,1765500674859,-1000.0,0.00041,120]
[398295335,1765500674868,-1000.0,0.00041,120]
[398295336,1765500674878,-1000.0,0.00041,120]
[398295337,1765500674888,-1000.0,0.00041,120]
[398295338,1765500674897,-1000.0,0.00041,120]
[398295339,1765500674907,-1000.0,0.00041,120]
[398295340,1765500674916,-1000.0,0.00041,120]
[398295341,1765500674926,-1000.0,0.00041,120]
[398295342,1765500674935,-1000.0,0.00041,120]
[398295343,1765500674945,-1000.0,0.00041,120]
[398295344,1765500674955,-1000.0,0.00041,120]
[398295345,1765500674964,-1000.0,0.00041,120]
[398295346,1765500674973,-1000.0,0.00041,120]
[398295347,1765500674982,-1000.0,0.00041,120]
[398295348,1765500674992,-1000.0,0.00041,120]
[398295349,1765500675001,-1000.0,0.00041,120]
[398295350,1765500675011,-1000.0,0.00041,120]
[398295351,1765500675021,-1000.0,0.00041,120]
[398295352,1765500675030,-1000.0,0.00041,120]
[398295353,1765500675039,-1000.0,0.00041,120]
[398295354,1765500675049,-1000.0,0.00041,120]
[398295355,1765500675058,-1000.0,0.00041,120]
[398295356,1765500675067,-1000.0,0.00041,120]
[398295357,1765500675076,-1000.0,0.00041,120]
[398295358,1765500675085,-1000.0,0.00041,120]
[398295359,1765500675095,-1000.0,0.00041,120]
[398295360,1765500675104,-1000.0,0.00041,120]
[398295361,1765500675114,-1000.0,0.00041,120]
[398295362,1765500675124,-1000.0,0.00041,120]
[398295363,1765500675133,-1000.0,0.00041,120]
[398295364,1765500675143,-1000.0,0.00041,120]
[398295365,1765500675152,-1000.0,0.00041,120]
[398295366,1765500675161,-2500.0,0.00041,120]
[398295367,1765500675171,-150.4,0.00041011,120]
[398295368,1765500675181,-1000.34,0.0004104,120]
[398295369,1765500675191,-1500.0,0.00041059,60]
[398295370,1765500675200,-1026.866191,0.00041068,120]
[398295371,1765500675209,-1026.866191,0.00041068,120]
[398295372,1765500675219,-1026.866191,0.00041068,120]
[398295373,1765500675228,-1026.866191,0.00041068,120]
[398295374,1765500675238,-1026.866191,0.00041068,120]
[398295375,1765500675247,-1026.866191,0.00041068,120]
[398295376,1765500675256,-1026.866191,0.00041068,120]
[398295377,1765500675267,-1026.866191,0.00041068,120]
[398295378,1765500675277,-1026.866191,0.00041068,120]
[398295379,1765500675286,-1026.866191,0.00041068,120]
[398295380,1765500675295,-1026.866191,0.00041068,120]
[398295381,1765500675305,-1026.866191,0.00041068,120]
[398295382,1765500675315,-1026.866191,0.00041068,120]
[398295383,1765500675325,-1026.866191,0.00041068,120]
[398295384,1765500675334,-1026.866191,0.00041068,120]
[398295385,1765500675344,-1026.866191,0.00041068,120]
[398295386,1765500675353,-1026.866191,0.00041068,120]
[398295387,1765500675364,-1026.866191,0.00041068,120]
[398295388,1765500675374,-1026.866191,0.00041068,120]
[398295389,1765500675387,-1026.866182,0.00041068,120]
[398295390,1765500675396,-156.29397478,0.00041079,2]
[398295391,1765500675406,-296.58387924,0.0004108,2]
[398295392,1765500675416,-607.40485815,0.00041086,7]
[398295393,1765500675426,-1346.02056,0.00041088,30]
[398295394,1765500675435,-199.0,0.00041095,40]
[398295395,1765500675445,-2641.5,0.00041095,30]
[398295396,1765500675455,-1332.37,0.00041095,120]
[398295397,1765500675465,-600.0,0.00041096,120]
[398295398,1765500675474,-500.0,0.00041096,35]
[398295399,1765500675484,-500.0,0.00041096,35]
[398295400,1765500675493,-2011.64,0.00041096,120]
[398295401,1765500675503,-1114.9,0.00041096,120]
[398295402,1765500675512,-1000.0,0.00041096,30]
[398295403,1765500675521,-1000.0,0.00041096,30]
[398295404,1765500675530,-1000.0,0.00041096,30]
[398295405,1765500675540,-1000.0,0.00041096,30]
[398295406,1765500675549,-1000.0,0.00041096,30]
[398295407,1765500675559,-1000.0,0.00041096,30]
[398295408,1765500675567,-1000.0,0.00041096,30]
[398295409,1765500675577,-1000.0,0.00041096,30]
[398295410,1765500675587,-1000.0,0.00041096,30]
[398295411,1765500675597,-1000.0,0.00041096,30]
[398295412,1765500675606,-1000.0,0.00041096,30]
[398295413,1765500675615,-1000.0,0.00041096,30]
[398295414,1765500675625,-1000.0,0.00041096,30]
[398295415,1765500675634,-1000.0,0.00041096,30]
[398295416,1765500675643,-1000.0,0.00041096,30]
[398295417,1765500675653,-1000.0,0.00041096,30]
[398295418,1765500675662,-1000.0,0.00041096,30]
[398295419,1765500675671,-1000.0,0.00041096,30]
[398295420,1765500675680,-1000.0,0.00041096,30]
[398295421,1765500675689,-1000.0,0.00041096,30]
[398295422,1765500675699,-1000.0,0.00041096,30]
[398295423,1765500675708,-1000.0,0.00041096,30]
[398295424,1765500675718,-1000.0,0.00041096,30]
[398295425,1765500675728,-1000.0,0.00041096,30]
[398295426,1765500675737,-1000.0,0.00041096,30]
[398295427,1765500675746,-1000.0,0.00041096,30]
[398295428,1765500675755,-1000.0,0.00041096,30]
[398295429,1765500675764,-1000.0,0.00041096,30]
[398295430,1765500675773,-1000.0,0.00041096,30]
[398295431,1765500675782,-1000.0,0.00041096,30]
[398295432,1765500675792,-1000.0,0.00041096,30]
[398295433,1765500675802,-1000.0,0.00041096,30]
[398295434,1765500675811,-1000.0,0.00041096,30]
[398295435,1765500675820,-1000.0,0.00041096,30]
[398295436,1765500675830,-1000.0,0.00041096,30]
[398295437,1765500675839,-1000.0,0.00041096,30]
[398295438,1765500675848,-1000.0,0.00041096,30]
[398295439,1765500675858,-1000.0,0.00041096,30]
[398295440,1765500675867,-1000.0,0.00041096,30]
[398295441,1765500675878,-1000.0,0.00041096,30]
[398295442,1765500675887,-1000.0,0.00041096,30]
[398295443,1765500675896,-1000.0,0.00041096,30]
[398295444,1765500675905,-1000.0,0.00041096,30]
[398295445,1765500675914,-1000.0,0.00041096,30]
[398295446,1765500675923,-1000.0,0.00041096,30]
[398295447,1765500675932,-1000.0,0.00041096,30]
[398295448,1765500675941,-1000.0,0.00041096,30]
[398295449,1765500675951,-1000.0,0.00041096,30]
[398295450,1765500675960,-1000.0,0.00041096,30]
[398295451,1765500675969,-1000.0,0.00041096,30]
[398295452,1765500676138,-1000.0,0.00041096,30]
[398295453,1765500676174,-1000.0,0.00041096,30]
[398295454,1765500676184,-1000.0,0.00041096,30]
[398295455,1765500676193,-1000.0,0.00041096,30]
[398295456,1765500676203,-1000.0,0.00041096,30]
[398295457,1765500676213,-1000.0,0.00041096,30]
[398295458,1765500676223,-1000.0,0.00041096,30]
[398295459,1765500676233,-1000.0,0.00041096,30]
[398295460,1765500676242,-1000.0,0.00041096,30]
[398295461,1765500676252,-1000.0,0.00041096,30]
[398295462,1765500676262,-1000.0,0.00041096,30]
[398295463,1765500676271,-1000.0,0.00041096,30]
[398295464,1765500676281,-1000.0,0.00041096,30]
[398295465,1765500676290,-1000.0,0.00041096,30]
[398295466,1765500676299,-1000.0,0.00041096,30]
[398295467,1765500676309,-1000.0,0.00041096,30]
[398295468,1765500676318,-1000.0,0.00041096,30]
[398295469,1765500676328,-1000.0,0.00041096,30]
[398295470,1765500676337,-1000.0,0.00041096,30]
[398295471,1765500676347,-1000.0,0.00041096,30]
[398295472,1765500676357,-1000.0,0.00041096,30]
[398295473,1765500676367,-1000.0,0.00041096,30]
[398295474,1765500676378,-1000.0,0.00041096,30]
[398295475,1765500676389,-1000.0,0.00041096,30]
[398295476,1765500676399,-1000.0,0.00041096,30]
[398295477,1765500676409,-1000.0,0.00041096,30]
[398295478,1765500676419,-1000.0,0.00041096,30]
[398295479,1765500676428,-1000.0,0.00041096,30]
[398295480,1765500676438,-1000.0,0.00041096,30]
[398295481,1765500676447,-1000.0,0.00041096,30]
[398295482,1765500676457,-1000.0,0.00041096,30]
[398295483,1765500676467,-1000.0,0.00041096,30]
[398295484,1765500676476,-1000.0,0.00041096,30]
[398295485,1765500676486,-1000.0,0.00041096,30]
[398295486,1765500676495,-1000.0,0.00041096,30]
[398295487,1765500676504,-1000.0,0.00041096,30]
[398295488,1765500676514,-1000.0,0.00041096,30]
[398295489,1765500676524,-1000.0,0.00041096,30]
[398295490,1765500676533,-1000.0,0.00041096,30]
[398295491,1765500676543,-1000.0,0.00041096,30]
[398295492,1765500676552,-1000.0,0.00041096,30]
[398295493,1765500676562,-1000.0,0.00041096,30]
[398295494,1765500676571,-1000.0,0.00041096,30]
[398295495,1765500676580,-1000.0,0.00041096,30]
[398295496,1765500676590,-1000.0,0.00041096,30]
[398295497,1765500676599,-1000.0,0.00041096,30]
[398295498,1765500676608,-1000.0,0.00041096,30]
[398295499,1765500676618,-1000.0,0.00041096,30]
[398295500,1765500676626,-1000.0,0.00041096,30]
[398295501,1765500676636,-1000.0,0.00041096,30]
[398295502,1765500676645,-156.36,0.00041096,2]
[398295503,1765500676655,-2000.0,0.00041096,13]
[398295504,1765500676664,-2000.0,0.00041096,13]
[398295505,1765500676673,-2000.0,0.00041096,13]
[398295506,1765500676682,-2000.0,0.00041096,13]
[398295507,1765500676692,-2000.0,0.00041096,13]
[398295508,1765500676702,-2000.0,0.00041096,13]
[398295509,1765500676712,-2000.0,0.00041096,13]
[398295510,1765500676721,-2000.0,0.00041096,13]
[398295511,1765500676731,-2000.0,0.00041096,13]
[398295512,1765500676740,-2000.0,0.00041096,13]
[398295513,1765500676750,-1159.0,0.00041096,13]
[398295514,1765500676760,-1604.0,0.00041096,120]
[398295515,1765500676769,-749.0,0.00041096,120]
[398295516,1765500676779,-1000.0,0.00041096,3]
[398295517,1765500676788,-1500.0,0.000411,120]
[398295518,1765500676798,-600.0,0.000411,2]
[398295519,1765500676807,-325.0,0.000411,2]
[398295520,1765500676817,-150.4,0.00041111,120]
[398295521,1765500676826,-296.58387924,0.0004118,2]
[398295522,1765500676836,-1500.0,0.000412,120]
[398295523,1765500676845,-150.4,0.00041211,120]
[398295524,1765500676855,-2183.67177964,0.0004123,5]
[398295525,1765500676864,-1604.0,0.00041233,120]
[398295526,1765500676874,-749.0,0.00041233,120]
[398295527,1765500676883,-1000.0,0.00041233,3]
[398295528,1765500676893,-1038.65,0.00041251,30]
[398295529,1765500676904,-1038.65,0.00041251,30]
[398295530,1765500676913,-1038.65,0.00041251,30]
[398295531,1765500676922,-1038.65,0.00041251,30]
[398295532,1765500676932,-296.58387924,0.0004128,2]
[398295533,1765500676942,-1346.02056,0.00041288,30]
[398295534,1765500676951,-1500.0,0.000413,120]
[398295535,1765500676960,-1500.0,0.000413,120]
[398295536,1765500676969,-150.4,0.00041311,120]
[398295537,1765500676978,-1316.0,0.00041315,30]
[398295538,1765500676987,-1942.0213214,0.0004133,120]
[398295539,1765500676997,-218.89789863,0.00041333,30]
[398295540,1765500677007,-1604.0,0.0004137,120]
[398295541,1765500677016,-749.0,0.0004137,120]
[398295542,1765500677026,-1000.0,0.0004137,3]
[398295543,1765500677036,-296.58387924,0.0004138,2]
[398295544,1765500677046,-977.70247648,0.00041384,10]
[398295545,1765500677058,-1500.45769828,0.00041386,120]
[398295546,1765500677068,-778.11192779,0.00041397,120]
[398295547,1765500677077,-1500.0,0.000414,120]
[398295548,1765500677086,-1500.0,0.000414,120]
[398295549,1765500677096,-877.42516082,0.00041401,30]
[398295550,1765500677106,-150.4,0.00041411,120]
[398295551,1765500677116,-1011.61936805,0.00041414,120]
[398295552,1765500677126,-4052.62162331,0.0004142,120]
[398295553,1765500677136,-478.38904911,0.00041439,2]
[398295554,1765500677146,-1057.45379103,0.00041439,2]
[398295555,1765500677155,-155.45436406,0.00041439,8]
[398295556,1765500677165,-150.0,0.0004147,120]
[398295557,1765500677177,-612.0,0.00041471,7]
[398295558,1765500677186,-2624.00000001,0.00041475,120]
[398295559,1765500677196,-1346.02056,0.00041488,30]
[398295560,1765500677207,-1000.0,0.00041499,120]
[398295561,1765500677217,-500.0,0.000415,120]
[398295562,1765500677227,-1318.80346037,0.000415,120]
[398295563,1765500677238,-2500.0,0.000415,120]
[398295564,1765500677247,-2499.99,0.000415,120]
[398295565,1765500677256,-1604.0,0.00041507,120]
[398295566,1765500677266,-749.0,0.00041507,120]
[398295567,1765500677275,-1000.0,0.00041507,3]
[398295568,1765500677284,-150.4,0.00041511,120]
[398295569,1765500677294,-1038.65,0.00041525,30]
[398295570,1765500677303,-1038.65,0.00041525,30]
[398295571,1765500677312,-648.0,0.00041538,2]
[398295572,1765500677322,-1448.0,0.0004155,120]
[398295573,1765500677331,-150.0,0.00041555,60]
[398295574,1765500677341,-150.0,0.00041555,60]
[398295575,1765500677350,-1500.0,0.00041558,120]
[398295576,1765500677359,-1500.0,0.00041558,30]
[398295577,1765500677369,-1500.0,0.000416,120]
[398295578,1765500677382,-1618.67,0.000416,120]
[398295579,1765500677392,-1618.67,0.000416,120]
[398295580,1765500677401,-1618.67,0.000416,120]
[398295581,1765500677411,-150.4,0.00041611,120]
[398295582,1765500677421,-1000.0,0.00041638,120]
[398295583,1765500677430,-1000.0,0.00041638,120]
[398295584,1765500677439,-1000.0,0.00041638,120]
[398295585,1765500677449,-1000.0,0.00041638,120]
[398295586,1765500677464,-1000.0,0.00041638,120]
[398295587,1765500677474,-1000.0,0.00041638,120]
[398295588,1765500677483,-1000.0,0.00041638,120]
[398295589,1765500677493,-690.12,0.00041638,120]
[398295590,1765500677503,-1000.0,0.00041641,120]
[398295591,1765500677512,-700.0,0.00041641,120]
[398295592,1765500677523,-400.0,0.00041641,14]
[398295593,1765500677542,-1604.0,0.00041644,120]
[398295594,1765500677551,-749.0,0.00041644,120]
[398295595,1765500677561,-1000.0,0.00041644,3]
[398295596,1765500677570,-1500.0,0.00041658,7]
[398295597,1765500677580,-1500.0,0.00041658,120]
[398295598,1765500677590,-1346.02056,0.00041688,30]
[398295599,1765500677599,-1500.0,0.000417,120]
[398295600,1765500677608,-2020.32,0.000417,120]
[398295601,1765500677617,-200.297228,0.000417,22]
[398295602,1765500677627,-150.0,0.00041705,120]
[398295603,1765500677636,-150.4,0.00041711,120]
[398295604,1765500677646,-1316.0,0.00041732,30]
[398295605,1765500677655,-1500.0,0.00041758,7]
[398295606,1765500677664,-1000.34,0.0004176,120]
[398295607,1765500677674,-199.0,0.0004178,41]
[398295608,1765500677684,-1604.0,0.00041781,120]
[398295609,1765500677693,-749.0,0.00041781,120]
[398295610,1765500677704,-1000.0,0.00041781,3]
[398295611,1765500677714,-1038.65,0.00041799,30]
[398295612,1765500677723,-1038.65,0.00041799,30]
[398295613,1765500677733,-1000.0,0.00041799,120]
[398295614,1765500677743,-1094.01625544,0.00041799,120]
[398295615,1765500677752,-500.0,0.00041799,120]
[398295616,1765500677762,-300.0,0.00041799,120]
[398295617,1765500677772,-1000.0,0.00041799,120]
[398295618,1765500677782,-1000.0,0.00041799,120]
[398295619,1765500677791,-1000.0,0.00041799,120]
[398295620,1765500677801,-1000.0,0.00041799,120]
[398295621,1765500677810,-1000.0,0.00041799,120]
[398295622,1765500677819,-914.90468546,0.00041799,120]
[398295623,1765500677828,-500.0,0.00041799,120]
[398295624,1765500677838,-1000.0,0.00041799,120]
[398295625,1765500677848,-259.78,0.000418,30]
[398295626,1765500677858,-873.44115631,0.000418,2]
[398295627,1765500677868,-1000.0,0.000418,120]
[398295628,1765500677877,-1000.0,0.000418,120]
[398295629,1765500677887,-500.0,0.000418,120]
[398295630,1765500677896,-1000.0,0.000418,120]
[398295631,1765500677906,-1000.0,0.000418,120]
[398295632,1765500677916,-1000.0,0.000418,120]
[398295633,1765500677926,-1000.0,0.000418,120]
[398295634,1765500677936,-1000.0,0.000418,120]
[398295635,1765500677946,-524.36,0.000418,120]
[398295636,1765500677956,-1048.0,0.000418,120]
[398295637,1765500677965,-216.85396689,0.000418,120]
[398295638,1765500677974,-1561.47,0.000418,120]
[398295639,1765500677983,-3000.0,0.000418,120]
[398295640,1765500677993,-1000.0,0.00041801,120]
[398295641,1765500678003,-150.4,0.00041811,120]
[398295642,1765500678012,-240.03976255,0.00041838,120]
[398295643,1765500678022,-1500.0,0.00041858,30]
[398295644,1765500678031,-1500.0,0.00041858,45]
[398295645,1765500678040,-2000.0,0.00041867,120]
[398295646,1765500678050,-200.0,0.00041867,120]
[398295647,1765500678059,-300.0,0.0004187,3]
[398295648,1765500678068,-300.0,0.0004187,3]
[398295649,1765500678078,-700.0,0.0004187,3]
[398295650,1765500678087,-700.0,0.0004187,3]
[398295651,1765500678098,-1445.42577978,0.00041881,7]
[398295652,1765500678107,-333.01052974,0.00041881,5]
[398295653,1765500678116,-2334.00908332,0.00041881,15]
[398295654,1765500678126,-7114.1817313,0.00041881,15]
[398295655,1765500678135,-1052.50199989,0.00041881,120]
[398295656,1765500678144,-478.38904911,0.00041882,2]
[398295657,1765500678154,-196.06408556,0.00041882,2]
[398295658,1765500678163,-1126.83405989,0.00041882,2]
[398295659,1765500678172,-1057.45379103,0.00041882,2]
[398295660,1765500678182,-155.45436406,0.00041882,8]
[398295661,1765500678191,-1346.02056,0.00041888,30]
[398295662,1765500678200,-2641.5,0.00041898,30]
[398295663,1765500678209,-1000.0,0.00041899,120]
[398295664,1765500678218,-2641.5,0.00041899,30]
[398295665,1765500678227,-3734.88028685,0.000419,2]
[398295666,1765500678236,-280000.0,0.000419,14]
[398295667,1765500678246,-2000.0,0.000419,120]
[398295668,1765500678256,-2000.0,0.000419,120]
[398295669,1765500678266,-2000.01,0.000419,120]
[398295670,1765500678276,-6182.17511114,0.000419,2]
[398295671,1765500678286,-6182.17511114,0.000419,4]
[398295672,1765500678296,-150.4,0.00041911,120]
[398295673,1765500678306,-1332.37,0.00041917,120]
[398295674,1765500678316,-1604.0,0.00041918,120]
[398295675,1765500678325,-749.0,0.00041918,120]
[398295676,1765500678335,-1000.0,0.00041918,3]
[398295677,1765500678344,-500.0,0.00041942,120]
[398295678,1765500678354,-159.07,0.00041946,120]
[398295679,1765500678363,-1806.70543872,0.00041949,30]
[398295680,1765500678373,-1806.70543872,0.00041949,30]
[398295681,1765500678386,-274.5052187,0.0004195,30]
[398295682,1765500678397,-274.5052187,0.0004195,30]
[398295683,1765500678406,-2641.5,0.00041955,30]
[398295684,1765500678416,-2641.5,0.00041955,30]
[398295685,1765500678427,-108068.71776253,0.00041955,30]
[398295686,1765500678437,-108068.71776253,0.00041955,30]
[398295687,1765500678447,-108068.71776253,0.00041955,30]
[398295688,1765500678457,-17161.36070886,0.00041955,30]
[398295689,1765500679941,-742.5,0.00032777,120]
[398295690,1765500679952,-1257.5,0.00032777,120]
[398295691,1765500679961,-2000.0,0.00032777,120]
[398295692,1765500679971,-1325.894,0.00032777,120]
[398295693,1765500679981,-151.0,0.00032877,31]
[398295694,1765500679990,-248.750649,0.00032877,31]
[398295695,1765500679999,-328.572832,0.00032877,31]
[398295696,1765500680017,-151.0,0.00032877,31]
[398295697,1765500680029,-248.750649,0.00032877,31]
[398295698,1765500680039,-328.572832,0.00032877,31]
[398295699,1765500680048,-151.0,0.00032877,31]
[398295700,1765500680057,-248.750649,0.00032877,31]
[398295701,1765500680069,-328.572832,0.00032877,31]
[398295702,1765500680080,-151.0,0.00032877,31]
[398295703,1765500680090,-248.750649,0.00032877,31]
[398295704,1765500680100,-158.4243,0.00032877,31]
[398295705,1765500680109,-328.572832,0.00032877,31]
[398295706,1765500680118,-151.0,0.00032877,31]
[398295707,1765500680127,-248.750649,0.00032877,31]
[398295708,1765500680136,-158.4243,0.00032877,31]
[398295709,1765500680145,-328.572832,0.00032877,31]
[398295710,1765500680154,-151.0,0.00032877,31]
[398295711,1765500680163,-248.750654,0.00032877,31]
[398295712,1765500680173,-158.4243,0.00032877,31]
[398295713,1765500680182,-135.78424314,0.00032877,31]
[398295714,1765500680230,-192.78858886,0.00032877,31]
[398295715,1765500680240,-151.956209,0.00032877,31]
[398295716,1765500680250,-158.4243,0.00032877,31]
[398295717,1765500680260,-195.940882,0.00032877,31]
[398295718,1765500680271,-30.14296476,0.00032877,31]
[398295725,1765501832171,-250.0,0.00017,2]
[398295726,1765501832181,-300.0,0.000187,2]
[398295727,1765501832191,-200.0,0.00019082,2]
[398295728,1765501832202,-500.0,0.00019886,2]
[398295729,1765501832212,-500.0,0.00019886,2]
[398295730,1765501832222,-94.18733027,0.00019886,2]
[398295745,1765501838133,-405.81266973,0.00019886,2]
[398295746,1765501838142,-480.8162296,0.00019969,2]
[398295747,1765501838151,-150.28,0.00020057,2]
[398295748,1765501838160,-152.58,0.00021871,2]
[398295749,1765501838170,-256.25,0.00022,14]
[398295750,1765501838179,-3325.75696866,0.0002468,2]
[398295751,1765501838188,-165.69443921,0.00025,2]
[398295752,1765501838197,-167.0,0.00028,14]
[398295753,1765501838208,-165.69443921,0.000285,56]
[398295754,1765501838217,-768.76,0.000286,14]
[398295755,1765501838226,-167.0,0.00029054,14]
[398295756,1765501838236,-500.0,0.0002929,30]
[398295757,1765501838245,-501.1868976,0.0002929,30]
[398295758,1765501838254,-178.84196588,0.00032,120]
[398295759,1765501838263,-211.32874541,0.00032,120]
[398295760,1765501838273,-205.53304705,0.00032,120]
[398295761,1765501838282,-223.94571972,0.00032,120]
[398295762,1765501838292,-165.69443921,0.00032,110]
[398295763,1765501838301,-2000.0,0.00032205,120]
[398295764,1765501838311,-2000.0,0.00032205,120]
[398295765,1765501838321,-228.52662805,0.00032311,30]
[398295766,1765501838330,-683.12,0.00032478,2]
[398295767,1765501838340,-500.0,0.00032848,30]
[398295768,1765501838349,-176.97219584,0.00032871,2]
[398295769,1765501838358,-318.54995251,0.00032871,2]
[398295770,1765501838367,-500.0,0.00032876,30]
[398295771,1765501838375,-500.0,0.00032876,30]
[398295772,1765501838385,-372.88694095,0.00032877,2]
[398295773,1765501838394,-1000.0,0.00032901,10]
[398295774,1765501838403,-533.976533,0.00033,8]
[398295775,1765501838412,-154.0,0.00033,14]
[398295776,1765501838421,-205.53304705,0.00033,120]
[398295777,1765501838430,-935.0,0.00033,2]
[398295778,1765501838438,-1000.0,0.00033038,10]
[398295779,1765501838447,-1000.0,0.00033175,10]
[398295780,1765501838456,-1000.0,0.00033312,10]
[398295781,1765501838465,-1000.0,0.00033449,10]
[398295782,1765501838474,-1000.0,0.00033586,10]
[398295783,1765501838483,-1000.0,0.00033723,10]
[398295784,1765501838493,-1000.0,0.0003386,10]
[398295785,1765501838502,-205.53304705,0.000339,120]
[398295786,1765501838511,-500.0,0.00033913,30]
[398295787,1765501838521,-1000.0,0.00033997,10]
[398295788,1765501838531,-1000.0,0.00034134,10]